[Event "*** Titled Tuesday 3|2 Blitz"]
[Site "Chess.com"]
[Date "2016.08.02"]
[Round "9"]
[White "Aragon"]
[Black "calemcc"]
[Result "0-1"]
[WhiteElo "2073"]
[BlackElo "2117"]
[TimeControl "180+2"]
[EndTime "13:04:41 PDT"]
[Termination "calemcc won by resignation"]

1. e4 {[%clk 0:03:01.9]} 1... e6 {[%clk 0:02:55.2]} 2. c4 {[%clk 0:03:02.3]}
2... d5 {[%clk 0:02:57.1]} 3. cxd5 {[%clk 0:03:04.2]} 3... exd5 {[%clk
0:02:55.2]} 4. Qb3 {[%clk 0:03:06.1]} 4... dxe4 {[%clk 0:02:48]} 5. Bc4 {[%clk
0:03:07.1]} 5... Qe7 {[%clk 0:02:40.3]} 6. Nc3 {[%clk 0:03:07.7]} 6... Nf6
{[%clk 0:02:40.8]} 7. d3 {[%clk 0:03:05.4]} 7... exd3+ {[%clk 0:02:40.7]} 8. Be3
{[%clk 0:03:06]} 8... Nbd7 {[%clk 0:02:31.8]} 9. O-O-O {[%clk 0:02:59.7]} 9...
Nb6 {[%clk 0:02:32]} 10. Bxb6 {[%clk 0:02:54.1]} 10... axb6 {[%clk 0:02:32.4]}
11. Nf3 {[%clk 0:02:43.4]} 11... Be6 {[%clk 0:02:31]} 12. Bxe6 {[%clk
0:02:24.7]} 12... fxe6 {[%clk 0:02:20.4]} 13. Rxd3 {[%clk 0:02:25]} 13... g6
{[%clk 0:02:16]} 14. Re3 {[%clk 0:02:24.3]} 14... O-O-O {[%clk 0:02:15]} 15.
Rxe6 {[%clk 0:02:19.2]} 15... Qg7 {[%clk 0:02:09]} 16. Qc4 {[%clk 0:02:04.1]}
16... Bd6 {[%clk 0:02:04.7]} 17. Nb5 {[%clk 0:01:56.8]} 17... Ne8 {[%clk
0:01:58.5]} 18. Rhe1 {[%clk 0:01:46.4]} 18... Qf7 {[%clk 0:01:54.2]} 19. b3
{[%clk 0:01:30.1]} 19... Bf4+ {[%clk 0:01:32.4]} 20. Kb1 {[%clk 0:01:26.4]}
20... Nd6 {[%clk 0:01:29.2]} 21. Nxd6+ {[%clk 0:01:01.8]} 21... Bxd6 {[%clk
0:01:20.8]} 22. Rxd6 {[%clk 0:00:56.8]} 22... Qf5+ {[%clk 0:01:17.9]} 23. Qe4
{[%clk 0:00:41.6]} 23... Qxe4+ {[%clk 0:01:16.9]} 24. Rxe4 {[%clk 0:00:43.5]}
24... Rxd6 {[%clk 0:01:18.4]} 25. Kc2 {[%clk 0:00:28.4]} 25... Rf8 {[%clk
0:01:16.3]} 26. Re2 {[%clk 0:00:28.6]} 26... Rc6+ {[%clk 0:01:11.5]} 27. Kb2
{[%clk 0:00:27.1]} 27... Rcf6 {[%clk 0:01:11.8]} 28. Kc2 {[%clk 0:00:27.1]}
28... h6 {[%clk 0:01:09.7]} 29. h3 {[%clk 0:00:28.5]} 29... g5 {[%clk 0:01:10]}
30. Kd2 {[%clk 0:00:28.3]} 30... h5 {[%clk 0:01:08.2]} 31. Ke1 {[%clk
0:00:29.6]} 31... g4 {[%clk 0:01:08.2]} 32. hxg4 {[%clk 0:00:30.8]} 32... hxg4
{[%clk 0:01:10.1]} 33. Ne5 {[%clk 0:00:32.2]} 33... g3 {[%clk 0:01:02.5]} 34. f3
{[%clk 0:00:33.1]} 34... Re8 {[%clk 0:01:00.5]} 35. Re3 {[%clk 0:00:33.9]} 35...
Rfe6 {[%clk 0:01:01.3]} 36. f4 {[%clk 0:00:35.2]} 36... Rf6 {[%clk 0:00:55.1]}
37. Re4 {[%clk 0:00:36.4]} 37... Ref8 {[%clk 0:00:44.7]} 38. Nd3 {[%clk
0:00:36.6]} 38... Rd8 {[%clk 0:00:45.2]} 39. Ke2 {[%clk 0:00:36.9]} 39... Rfd6
{[%clk 0:00:45.3]} 40. Re3 {[%clk 0:00:38.3]} 40... Rg8 {[%clk 0:00:39.7]} 41.
Ne5 {[%clk 0:00:27.4]} 41... Rf6 {[%clk 0:00:38.5]} 42. Kf3 {[%clk 0:00:27.1]}
42... Rd6 {[%clk 0:00:29.4]} 43. Nc4 {[%clk 0:00:22.9]} 43... Rd4 {[%clk
0:00:27.5]} 44. Re4 {[%clk 0:00:21.2]} 44... Rxe4 {[%clk 0:00:27.6]} 45. Kxe4
{[%clk 0:00:22]} 45... b5 {[%clk 0:00:27.5]} 46. Na3 {[%clk 0:00:16.8]} 46... c6
{[%clk 0:00:27.6]} 47. Nb1 {[%clk 0:00:13.2]} 47... Kc7 {[%clk 0:00:28.7]} 48.
Nd2 {[%clk 0:00:12.7]} 48... Ra8 {[%clk 0:00:29.1]} 49. Nf1 {[%clk 0:00:11.1]}
49... Rxa2 {[%clk 0:00:29.5]} 50. Nxg3 {[%clk 0:00:07.7]} 50... Rxg2 {[%clk
0:00:30.3]} 51. Kf3 {[%clk 0:00:09]} 51... Rb2 {[%clk 0:00:30.7]} 52. Ne4 {[%clk
0:00:10.9]} 52... Rxb3+ {[%clk 0:00:31.6]} 53. Kg4 {[%clk 0:00:12.8]} 53... Rb2
{[%clk 0:00:31.2]} 54. f5 {[%clk 0:00:14.7]} 54... Rb1 {[%clk 0:00:31.8]} 55. f6
{[%clk 0:00:14.4]} 55... Rf1 {[%clk 0:00:32.5]} 56. Kg5 {[%clk 0:00:14.5]} 56...
b4 {[%clk 0:00:32.5]} 57. Ng3 {[%clk 0:00:15.6]} 57... Rf3 {[%clk 0:00:32.1]}
58. Kg4 {[%clk 0:00:15.4]} 58... Rxf6 {[%clk 0:00:32]} 59. Ne4 {[%clk
0:00:16.8]} 0-1

[Event "*** Titled Tuesday 3|2 Blitz"]
[Site "Chess.com"]
[Date "2016.08.02"]
[Round "9"]
[White "Colombiano07"]
[Black "Balandel"]
[Result "0-1"]
[WhiteElo "2220"]
[BlackElo "2340"]
[TimeControl "180+2"]
[EndTime "13:04:46 PDT"]
[Termination "Balandel won by resignation"]

1. e4 {[%clk 0:03:01.9]} 1... Nf6 {[%clk 0:02:57.7]} 2. Nc3 {[%clk 0:03:02.2]}
2... d5 {[%clk 0:02:58.2]} 3. d4 {[%clk 0:03:03]} 3... dxe4 {[%clk 0:02:55.9]}
4. Bg5 {[%clk 0:03:03.5]} 4... Nbd7 {[%clk 0:02:55.9]} 5. f3 {[%clk 0:03:02.7]}
5... e3 {[%clk 0:02:53.9]} 6. Bxe3 {[%clk 0:03:02.8]} 6... e6 {[%clk 0:02:54.9]}
7. Qd2 {[%clk 0:03:04.2]} 7... b6 {[%clk 0:02:55.2]} 8. O-O-O {[%clk 0:03:05.6]}
8... Bb7 {[%clk 0:02:56]} 9. Bd3 {[%clk 0:03:07.3]} 9... Bb4 {[%clk 0:02:55]}
10. Kb1 {[%clk 0:03:08.3]} 10... Nd5 {[%clk 0:02:55.1]} 11. Nge2 {[%clk
0:03:09.9]} 11... O-O {[%clk 0:02:49.6]} 12. a3 {[%clk 0:03:10.4]} 12... Nxe3
{[%clk 0:02:49]} 13. Qxe3 {[%clk 0:03:06.9]} 13... Bxc3 {[%clk 0:02:48.3]} 14.
Nxc3 {[%clk 0:03:08.8]} 14... Re8 {[%clk 0:02:47.1]} 15. h4 {[%clk 0:03:08.6]}
15... a6 {[%clk 0:02:42.6]} 16. h5 {[%clk 0:03:09.9]} 16... h6 {[%clk
0:02:42.1]} 17. g4 {[%clk 0:03:10.3]} 17... Qg5 {[%clk 0:02:31.8]} 18. Qxg5
{[%clk 0:03:08.2]} 18... hxg5 {[%clk 0:02:31.6]} 19. Be4 {[%clk 0:03:10.1]}
19... Rab8 {[%clk 0:02:27.5]} 20. Bxb7 {[%clk 0:03:07.3]} 20... Rxb7 {[%clk
0:02:28.4]} 21. h6 {[%clk 0:02:48.9]} 21... Nf6 {[%clk 0:02:20.6]} 22. hxg7
{[%clk 0:02:49.4]} 22... Kxg7 {[%clk 0:02:21.4]} 23. d5 {[%clk 0:02:42.8]} 23...
Rbb8 {[%clk 0:02:14.6]} 24. d6 {[%clk 0:02:33.1]} 24... cxd6 {[%clk 0:02:12.1]}
25. Rxd6 {[%clk 0:02:35]} 25... Rec8 {[%clk 0:02:04.7]} 26. Rhd1 {[%clk
0:02:23.1]} 26... Rc4 {[%clk 0:01:52.8]} 27. R1d4 {[%clk 0:02:13.3]} 27... Rc7
{[%clk 0:01:46.3]} 28. Na4 {[%clk 0:01:57.5]} 28... b5 {[%clk 0:01:37.4]} 29.
Nc3 {[%clk 0:01:54.4]} 29... a5 {[%clk 0:01:33.2]} 30. Ra6 {[%clk 0:01:47.4]}
30... b4 {[%clk 0:01:30.5]} 31. axb4 {[%clk 0:01:37.2]} 31... axb4 {[%clk
0:01:26.2]} 32. Ne4 {[%clk 0:01:25.5]} 32... Nxe4 {[%clk 0:01:14.4]} 33. Rxe4
{[%clk 0:01:27.4]} 33... Rb5 {[%clk 0:01:06.1]} 34. Ra4 {[%clk 0:01:21.9]} 34...
Rcb7 {[%clk 0:01:06.7]} 35. b3 {[%clk 0:00:58.5]} 35... R7b6 {[%clk 0:00:52.5]}
36. Kc1 {[%clk 0:00:59.4]} 36... Kg6 {[%clk 0:00:52.8]} 37. Kd2 {[%clk
0:00:59.2]} 37... f5 {[%clk 0:00:53.4]} 38. Rc4 {[%clk 0:00:51.6]} 38... Kf6
{[%clk 0:00:49.7]} 39. Ra8 {[%clk 0:00:49.2]} 39... Rd5+ {[%clk 0:00:46.2]} 40.
Ke3 {[%clk 0:00:46.3]} 40... f4+ {[%clk 0:00:44.3]} 41. Ke2 {[%clk 0:00:40.9]}
41... Rbd6 {[%clk 0:00:41.8]} 42. Ra1 {[%clk 0:00:31.2]} 42... Rd2+ {[%clk
0:00:36.8]} 43. Kf1 {[%clk 0:00:31.2]} 43... Rh2 {[%clk 0:00:36.9]} 44. Kg1
{[%clk 0:00:27.8]} 44... Rdd2 {[%clk 0:00:34.5]} 45. Rxb4 {[%clk 0:00:25.3]}
45... Rdg2+ {[%clk 0:00:34.4]} 46. Kf1 {[%clk 0:00:26.1]} 46... Rxc2 {[%clk
0:00:35.5]} 47. Kg1 {[%clk 0:00:27.2]} 47... Rcg2+ {[%clk 0:00:36.7]} 48. Kf1
{[%clk 0:00:28.3]} 48... Rg3 {[%clk 0:00:38.1]} 49. Ra6 {[%clk 0:00:22.9]} 49...
Rxf3+ {[%clk 0:00:38.4]} 50. Kg1 {[%clk 0:00:24.4]} 50... Re2 {[%clk 0:00:39]}
51. Rb8 {[%clk 0:00:16.2]} 51... Rc3 {[%clk 0:00:34.4]} 52. Kf1 {[%clk
0:00:14.6]} 52... Rh2 {[%clk 0:00:32.4]} 53. Kg1 {[%clk 0:00:15.5]} 53... Rb2
{[%clk 0:00:32.7]} 54. Ra1 {[%clk 0:00:14.9]} 54... Rcxb3 {[%clk 0:00:28.9]} 55.
Rxb3 {[%clk 0:00:13.2]} 55... Rxb3 {[%clk 0:00:29.8]} 56. Kf2 {[%clk 0:00:12.4]}
56... Rg3 {[%clk 0:00:30.7]} 0-1

[Event "*** Titled Tuesday 3|2 Blitz"]
[Site "Chess.com"]
[Date "2016.08.02"]
[Round "9"]
[White "awb2001"]
[Black "Maitreia"]
[Result "1-0"]
[WhiteElo "2328"]
[BlackElo "2353"]
[TimeControl "180+2"]
[EndTime "13:05:10 PDT"]
[Termination "awb2001 won on time"]

1. e4 {[%clk 0:03:01.9]} 1... a6 {[%clk 0:03:00.5]} 2. d4 {[%clk 0:03:01.9]}
2... b5 {[%clk 0:02:55.2]} 3. Nf3 {[%clk 0:03:03]} 3... Bb7 {[%clk 0:02:55.5]}
4. Bd3 {[%clk 0:03:04]} 4... Nf6 {[%clk 0:02:54.7]} 5. Qe2 {[%clk 0:02:49.9]}
5... e6 {[%clk 0:02:53.1]} 6. O-O {[%clk 0:02:49.9]} 6... c5 {[%clk 0:02:45.7]}
7. c3 {[%clk 0:02:50.1]} 7... Nc6 {[%clk 0:02:35.9]} 8. Bg5 {[%clk 0:02:48.8]}
8... Be7 {[%clk 0:02:31.6]} 9. Nbd2 {[%clk 0:02:47.9]} 9... h6 {[%clk
0:02:22.8]} 10. Bxf6 {[%clk 0:02:47]} 10... gxf6 {[%clk 0:02:19.5]} 11. Rad1
{[%clk 0:02:39.9]} 11... cxd4 {[%clk 0:02:12.4]} 12. cxd4 {[%clk 0:02:40.2]}
12... Qb6 {[%clk 0:02:11]} 13. Nb3 {[%clk 0:02:40.1]} 13... h5 {[%clk 0:02:07]}
14. Rc1 {[%clk 0:02:23.8]} 14... Rc8 {[%clk 0:02:07.6]} 15. d5 {[%clk 0:02:24]}
15... Ne5 {[%clk 0:01:57.2]} 16. Nxe5 {[%clk 0:02:23]} 16... fxe5 {[%clk
0:01:54.2]} 17. Rxc8+ {[%clk 0:02:21.3]} 17... Bxc8 {[%clk 0:01:56.1]} 18. Rc1
{[%clk 0:02:21.5]} 18... Bb7 {[%clk 0:01:56]} 19. dxe6 {[%clk 0:02:21.3]} 19...
dxe6 {[%clk 0:01:53.3]} 20. Qd2 {[%clk 0:02:15]} 20... Rg8 {[%clk 0:01:51]} 21.
Qa5 {[%clk 0:02:07.5]} 21... Bd8 {[%clk 0:01:43]} 22. Qc3 {[%clk 0:02:00.3]}
22... h4 {[%clk 0:01:36.3]} 23. Qxe5 {[%clk 0:01:55.6]} 23... h3 {[%clk
0:01:27.9]} 24. g3 {[%clk 0:01:53.5]} 24... Be7 {[%clk 0:01:20.7]} 25. Qb8+
{[%clk 0:01:45.9]} 25... Bd8 {[%clk 0:01:22.3]} 26. Nc5 {[%clk 0:01:32.1]} 26...
Bc6 {[%clk 0:01:11.8]} 27. Qxb6 {[%clk 0:01:30.3]} 27... Bxb6 {[%clk 0:01:13.7]}
28. Nxa6 {[%clk 0:01:31.1]} 28... Kd7 {[%clk 0:01:11.2]} 29. Nb4 {[%clk
0:01:28.6]} 29... Bb7 {[%clk 0:01:04.8]} 30. Bxb5+ {[%clk 0:01:29.4]} 30... Ke7
{[%clk 0:01:05.1]} 31. Bc6 {[%clk 0:01:25]} 31... Rc8 {[%clk 0:01:03.1]} 32. Rc2
{[%clk 0:01:18.9]} 32... Rd8 {[%clk 0:00:59.5]} 33. Kf1 {[%clk 0:01:13.3]} 33...
Bc8 {[%clk 0:00:50.1]} 34. Ke2 {[%clk 0:01:11.7]} 34... Rd4 {[%clk 0:00:40.5]}
35. a3 {[%clk 0:01:05]} 35... Kf6 {[%clk 0:00:41.8]} 36. f3 {[%clk 0:00:38.1]}
36... Kg5 {[%clk 0:00:40.3]} 37. Rd2 {[%clk 0:00:38.7]} 37... Rc4 {[%clk
0:00:41.1]} 38. Nd3 {[%clk 0:00:32]} 38... Ba6 {[%clk 0:00:39.1]} 39. Kd1 {[%clk
0:00:32.9]} 39... Rxc6 {[%clk 0:00:29.2]} 40. Nb4 {[%clk 0:00:29.9]} 40... Bb5
{[%clk 0:00:16]} 41. Nxc6 {[%clk 0:00:27.3]} 41... Bxc6 {[%clk 0:00:17.9]} 42.
b3 {[%clk 0:00:25.7]} 42... Be3 {[%clk 0:00:02.9]} 43. Re2 {[%clk 0:00:22.3]}
43... Bg1 {[%clk 0:00:03.5]} 44. a4 {[%clk 0:00:21.5]} 44... Bd7 {[%clk
0:00:03.3]} 45. Rd2 {[%clk 0:00:20.6]} 45... Bc6 {[%clk 0:00:04]} 46. a5 {[%clk
0:00:21.5]} 46... Bb5 {[%clk 0:00:02.6]} 47. Rc2 {[%clk 0:00:19.9]} 47... f5
{[%clk 0:00:03.5]} 48. Ke1 {[%clk 0:00:19.2]} 48... Be3 {[%clk 0:00:03.5]} 49.
f4+ {[%clk 0:00:19.7]} 49... Kg4 {[%clk 0:00:04.5]} 50. exf5 {[%clk 0:00:20]}
50... exf5 {[%clk 0:00:06.4]} 51. Rc3 {[%clk 0:00:18]} 51... Kf3 {[%clk
0:00:07.9]} 52. b4 {[%clk 0:00:17.7]} 52... Ba6 {[%clk 0:00:08.3]} 53. Rb3
{[%clk 0:00:17.5]} 1-0

[Event "*** Titled Tuesday 3|2 Blitz"]
[Site "Chess.com"]
[Date "2016.08.02"]
[Round "9"]
[White "Hieronymus00"]
[Black "WanderingPuppet"]
[Result "1/2-1/2"]
[WhiteElo "2151"]
[BlackElo "2259"]
[TimeControl "180+2"]
[EndTime "13:05:28 PDT"]
[Termination "Game drawn by repetition"]

1. e4 {[%clk 0:03:01.9]} 1... c5 {[%clk 0:02:55.9]} 2. Nf3 {[%clk 0:03:02.6]}
2... d6 {[%clk 0:02:56.7]} 3. d4 {[%clk 0:03:03.3]} 3... cxd4 {[%clk 0:02:58.6]}
4. Nxd4 {[%clk 0:03:03.7]} 4... Nf6 {[%clk 0:03:00.3]} 5. Nc3 {[%clk 0:03:04.2]}
5... a6 {[%clk 0:03:02]} 6. Bg5 {[%clk 0:03:04.7]} 6... e6 {[%clk 0:03:03.5]} 7.
f4 {[%clk 0:03:05.6]} 7... Bd7 {[%clk 0:03:03.9]} 8. Qf3 {[%clk 0:03:05.7]} 8...
Nc6 {[%clk 0:03:04]} 9. O-O-O {[%clk 0:03:03.8]} 9... Qa5 {[%clk 0:03:04.3]} 10.
Nb3 {[%clk 0:03:01.2]} 10... Qc7 {[%clk 0:03:05.3]} 11. g4 {[%clk 0:02:51.9]}
11... Be7 {[%clk 0:03:01.9]} 12. Bd3 {[%clk 0:02:24.3]} 12... h6 {[%clk
0:03:01.9]} 13. Bxf6 {[%clk 0:02:14.3]} 13... Bxf6 {[%clk 0:03:03.8]} 14. e5
{[%clk 0:02:12.1]} 14... dxe5 {[%clk 0:03:02.6]} 15. Ne4 {[%clk 0:02:12.9]}
15... Be7 {[%clk 0:03:00.4]} 16. f5 {[%clk 0:02:13.9]} 16... O-O-O {[%clk
0:02:41.5]} 17. Rhe1 {[%clk 0:02:00.6]} 17... Rhf8 {[%clk 0:02:25.1]} 18. Qf2
{[%clk 0:01:47.5]} 18... Kb8 {[%clk 0:02:12.2]} 19. Kb1 {[%clk 0:01:47.5]} 19...
Nd4 {[%clk 0:02:02.7]} 20. Nxd4 {[%clk 0:01:39.6]} 20... exd4 {[%clk 0:02:04.6]}
21. Qxd4 {[%clk 0:01:39.9]} 21... exf5 {[%clk 0:02:00]} 22. gxf5 {[%clk
0:01:39.9]} 22... Bxf5 {[%clk 0:01:59.8]} 23. Qxg7 {[%clk 0:01:37.7]} 23... Be6
{[%clk 0:01:48.2]} 24. Nc3 {[%clk 0:01:11.2]} 24... Bb4 {[%clk 0:01:40.6]} 25.
Qe5 {[%clk 0:01:00.2]} 25... Bxc3 {[%clk 0:01:30.3]} 26. Qxc3 {[%clk 0:01:00.9]}
26... Qxc3 {[%clk 0:01:30.3]} 27. bxc3 {[%clk 0:01:02]} 27... Rg8 {[%clk
0:01:27.3]} 28. Re5 {[%clk 0:00:52.8]} 28... Rg5 {[%clk 0:01:19.9]} 29. Rde1
{[%clk 0:00:36.2]} 29... Rdg8 {[%clk 0:01:16.4]} 30. h4 {[%clk 0:00:31.4]} 30...
Rg1 {[%clk 0:01:11.4]} 31. Kb2 {[%clk 0:00:31.7]} 31... Rxe1 {[%clk 0:01:11.9]}
32. Rxe1 {[%clk 0:00:32.2]} 32... Rg4 {[%clk 0:01:06.8]} 33. h5 {[%clk
0:00:32.9]} 33... Rh4 {[%clk 0:01:05]} 34. Re5 {[%clk 0:00:28.7]} 34... Kc7
{[%clk 0:01:03.9]} 35. Be2 {[%clk 0:00:22.8]} 35... Kd6 {[%clk 0:00:57.9]} 36.
Re3 {[%clk 0:00:23.5]} 36... Ra4 {[%clk 0:00:56.9]} 37. c4 {[%clk 0:00:18.5]}
37... Bxc4 {[%clk 0:00:56]} 38. Bxc4 {[%clk 0:00:18.8]} 38... Rxc4 {[%clk
0:00:57.9]} 39. Rf3 {[%clk 0:00:19.4]} 39... Ke6 {[%clk 0:00:56.9]} 40. Kb3
{[%clk 0:00:18.3]} 40... Rh4 {[%clk 0:00:56.3]} 41. Re3+ {[%clk 0:00:19.5]}
41... Kd6 {[%clk 0:00:47.2]} 42. Rd3+ {[%clk 0:00:17.4]} 42... Kc6 {[%clk
0:00:42.8]} 43. Rf3 {[%clk 0:00:17.9]} 43... Rxh5 {[%clk 0:00:39.1]} 44. Rxf7
{[%clk 0:00:18.9]} 44... Rb5+ {[%clk 0:00:35.7]} 45. Kc3 {[%clk 0:00:18.2]}
45... h5 {[%clk 0:00:36.4]} 46. Rh7 {[%clk 0:00:18.6]} 46... Rd5 {[%clk
0:00:32.8]} 47. a3 {[%clk 0:00:17.1]} 47... a5 {[%clk 0:00:29.4]} 48. a4 {[%clk
0:00:17.2]} 48... b6 {[%clk 0:00:28.2]} 49. Kb3 {[%clk 0:00:16.7]} 49... Kc5
{[%clk 0:00:28.7]} 50. Rh6 {[%clk 0:00:16.6]} 50... Rg5 {[%clk 0:00:28.9]} 51.
Rh7 {[%clk 0:00:15]} 51... b5 {[%clk 0:00:27.9]} 52. axb5 {[%clk 0:00:15.6]}
52... Kxb5 {[%clk 0:00:29.8]} 53. Rb7+ {[%clk 0:00:13.5]} 53... Kc6 {[%clk
0:00:29.6]} 54. Rh7 {[%clk 0:00:14.2]} 54... Rg3+ {[%clk 0:00:28.6]} 55. c3
{[%clk 0:00:14.3]} 55... Rg5 {[%clk 0:00:27.5]} 56. Kc4 {[%clk 0:00:13.4]} 56...
Rg4+ {[%clk 0:00:26.9]} 57. Kb3 {[%clk 0:00:14.2]} 57... h4 {[%clk 0:00:27.8]}
58. Rh5 {[%clk 0:00:15.3]} 58... Kb6 {[%clk 0:00:28.1]} 59. c4 {[%clk
0:00:15.3]} 59... a4+ {[%clk 0:00:19.7]} 60. Kxa4 {[%clk 0:00:16]} 60... Rxc4+
{[%clk 0:00:19.8]} 61. Kb3 {[%clk 0:00:17.1]} 61... Rg4 {[%clk 0:00:18.2]} 62.
Kc3 {[%clk 0:00:17.9]} 62... Kc6 {[%clk 0:00:19.8]} 63. Kd3 {[%clk 0:00:19.3]}
63... Kd6 {[%clk 0:00:18.2]} 64. Ke3 {[%clk 0:00:20.4]} 64... Ke6 {[%clk
0:00:18.8]} 65. Kf3 {[%clk 0:00:21.2]} 65... Rg3+ {[%clk 0:00:19.8]} 66. Kf2
{[%clk 0:00:21.1]} 66... Rg4 {[%clk 0:00:20.6]} 67. Kf3 {[%clk 0:00:22.2]} 67...
Rg3+ {[%clk 0:00:21.7]} 68. Kf2 {[%clk 0:00:23.5]} 68... Rg4 {[%clk 0:00:23.1]}
69. Kf3 {[%clk 0:00:24.8]} 69... Rg3+ {[%clk 0:00:24.6]} 1/2-1/2

[Event "*** Titled Tuesday 3|2 Blitz"]
[Site "Chess.com"]
[Date "2016.08.02"]
[Round "9"]
[White "MinhGTrAn"]
[Black "platy3"]
[Result "1-0"]
[WhiteElo "2624"]
[BlackElo "2691"]
[TimeControl "180+2"]
[EndTime "13:06:19 PDT"]
[Termination "MinhGTrAn won on time"]

1. d4 {[%clk 0:03:01.9]} 1... Nf6 {[%clk 0:03:00.7]} 2. c4 {[%clk 0:03:01.3]}
2... c5 {[%clk 0:03:01.7]} 3. d5 {[%clk 0:03:02.4]} 3... e6 {[%clk 0:03:03]} 4.
Nc3 {[%clk 0:03:03.3]} 4... exd5 {[%clk 0:03:04.7]} 5. cxd5 {[%clk 0:03:05.2]}
5... d6 {[%clk 0:03:06.4]} 6. Nf3 {[%clk 0:03:04.7]} 6... g6 {[%clk 0:03:07.8]}
7. g3 {[%clk 0:03:01.8]} 7... Bg7 {[%clk 0:03:09.1]} 8. Bg2 {[%clk 0:03:03.3]}
8... O-O {[%clk 0:03:10.7]} 9. O-O {[%clk 0:03:05.2]} 9... a6 {[%clk 0:03:11.2]}
10. a4 {[%clk 0:03:06.7]} 10... Re8 {[%clk 0:03:12.6]} 11. Nd2 {[%clk
0:03:06.9]} 11... Nbd7 {[%clk 0:03:12.4]} 12. h3 {[%clk 0:03:01.8]} 12... Rb8
{[%clk 0:03:12.2]} 13. a5 {[%clk 0:02:59.9]} 13... b5 {[%clk 0:02:48.2]} 14.
axb6 {[%clk 0:03:01.8]} 14... Nxb6 {[%clk 0:02:49.4]} 15. e4 {[%clk 0:02:58.9]}
15... Nfd7 {[%clk 0:02:46.8]} 16. Qc2 {[%clk 0:02:57.1]} 16... Qc7 {[%clk
0:02:46.6]} 17. Kh2 {[%clk 0:02:53.4]} 17... c4 {[%clk 0:02:45.2]} 18. Na4
{[%clk 0:02:42.1]} 18... Nxa4 {[%clk 0:02:45.7]} 19. Rxa4 {[%clk 0:02:44]} 19...
Nc5 {[%clk 0:02:40.1]} 20. Rxc4 {[%clk 0:02:41]} 20... a5 {[%clk 0:02:41.6]} 21.
Nb3 {[%clk 0:02:14.1]} 21... Ba6 {[%clk 0:02:40.8]} 22. Rxc5 {[%clk 0:02:01]}
22... dxc5 {[%clk 0:02:41.3]} 23. Rd1 {[%clk 0:02:02.9]} 23... a4 {[%clk
0:02:29.3]} 24. Nd4 {[%clk 0:01:52.4]} 24... Rbc8 {[%clk 0:02:24.7]} 25. Nc6
{[%clk 0:01:39.9]} 25... Bb5 {[%clk 0:02:26.2]} 26. Bf4 {[%clk 0:01:36]} 26...
Qb7 {[%clk 0:02:20.9]} 27. e5 {[%clk 0:01:33.2]} 27... Qb6 {[%clk 0:01:46.2]}
28. Re1 {[%clk 0:01:19.3]} 28... c4 {[%clk 0:01:13.4]} 29. Be3 {[%clk
0:01:15.9]} 29... Qa6 {[%clk 0:01:14.7]} 30. Bd4 {[%clk 0:01:16.7]} 30... Rxc6
{[%clk 0:01:04.1]} 31. dxc6 {[%clk 0:01:18.6]} 31... Bxc6 {[%clk 0:01:06]} 32.
Bc3 {[%clk 0:01:10.7]} 32... Bxg2 {[%clk 0:00:54.7]} 33. Kxg2 {[%clk 0:01:12.6]}
33... Qc6+ {[%clk 0:00:54.8]} 34. Qe4 {[%clk 0:01:10.9]} 34... Qb5 {[%clk
0:00:52.8]} 35. Qd4 {[%clk 0:00:59.1]} 35... Qc6+ {[%clk 0:00:49.2]} 36. Qe4
{[%clk 0:00:58.2]} 36... Qb5 {[%clk 0:00:38.9]} 37. Re2 {[%clk 0:00:55]} 37...
Bf8 {[%clk 0:00:37.5]} 38. Rd2 {[%clk 0:00:47.4]} 38... a3 {[%clk 0:00:32.1]}
39. bxa3 {[%clk 0:00:45.7]} 39... Bxa3 {[%clk 0:00:32.4]} 40. Rd4 {[%clk
0:00:46.1]} 40... Bf8 {[%clk 0:00:10.9]} 41. Rxc4 {[%clk 0:00:46.8]} 41... Bg7
{[%clk 0:00:12.6]} 42. Rb4 {[%clk 0:00:39.9]} 42... Qc5 {[%clk 0:00:12.5]} 43.
Qc4 {[%clk 0:00:38.5]} 43... Qa7 {[%clk 0:00:10]} 44. Qd5 {[%clk 0:00:37.6]}
44... Qa8 {[%clk 0:00:04.6]} 45. Rb7 {[%clk 0:00:37.2]} 45... Re7 {[%clk
0:00:05.8]} 46. Rd7 {[%clk 0:00:31.9]} 46... Qxd5+ {[%clk 0:00:06.4]} 47. Rxd5
{[%clk 0:00:33.1]} 47... h5 {[%clk 0:00:06.4]} 48. f4 {[%clk 0:00:34]} 48... Rc7
{[%clk 0:00:07.5]} 49. Rd3 {[%clk 0:00:33.4]} 49... Bf8 {[%clk 0:00:08.3]} 50.
Kf3 {[%clk 0:00:34.3]} 50... Rc4 {[%clk 0:00:09.4]} 51. Bd4 {[%clk 0:00:33.7]}
51... Be7 {[%clk 0:00:10.3]} 52. Ke4 {[%clk 0:00:34]} 52... Kf8 {[%clk
0:00:11.5]} 53. Kd5 {[%clk 0:00:33.3]} 53... Ra4 {[%clk 0:00:12.6]} 54. Rb3
{[%clk 0:00:33.9]} 54... Ra5+ {[%clk 0:00:13.3]} 55. Ke4 {[%clk 0:00:34.4]}
55... Ra4 {[%clk 0:00:14.7]} 56. Rb8+ {[%clk 0:00:31.6]} 56... Kg7 {[%clk
0:00:16]} 57. e6+ {[%clk 0:00:24.1]} 57... f6 {[%clk 0:00:06.2]} 58. Rb7 {[%clk
0:00:22.9]} 58... Kf8 {[%clk 0:00:07.2]} 59. Rb8+ {[%clk 0:00:24.1]} 59... Kg7
{[%clk 0:00:08.5]} 60. Kd5 {[%clk 0:00:25.6]} 60... Ra6 {[%clk 0:00:07.2]} 61.
Rb6 {[%clk 0:00:21.7]} 61... Ra8 {[%clk 0:00:04.1]} 62. Rb7 {[%clk 0:00:21.1]}
62... Kf8 {[%clk 0:00:03.8]} 63. Bc5 {[%clk 0:00:12.6]} 63... Ra5 {[%clk
0:00:04.4]} 64. Rxe7 {[%clk 0:00:07.9]} 64... Rxc5+ {[%clk 0:00:04.2]} 65. Kxc5
{[%clk 0:00:09.8]} 65... Kxe7 {[%clk 0:00:05.9]} 66. Kd5 {[%clk 0:00:07.4]}
66... Kd8 {[%clk 0:00:02.2]} 67. Kd6 {[%clk 0:00:08]} 67... Ke8 {[%clk
0:00:03.9]} 68. g4 {[%clk 0:00:07.2]} 68... hxg4 {[%clk 0:00:04.8]} 69. hxg4
{[%clk 0:00:09.1]} 69... f5 {[%clk 0:00:02.6]} 70. gxf5 {[%clk 0:00:09.8]} 70...
gxf5 {[%clk 0:00:03.8]} 71. Ke5 {[%clk 0:00:11]} 1-0